[Event "*** Titled Tuesday Blitz"]
[Site "Chess.com"]
[Date "2018.01.02"]
[Round "7"]
[White "severomorskij"]
[Black "gkchesstiger"]
[Result "1-0"]
[WhiteElo "2675"]
[BlackElo "2632"]
[TimeControl "180+2"]
[EndTime "14:35:26 PST"]
[Termination "severomorskij won by resignation"]

1. d4 {[%clk 0:03:01.9]} 1... d5 {[%clk 0:03:00.6]} 2. c4 {[%clk 0:03:02.5]}
2... c6 {[%clk 0:03:01.9]} 3. Nc3 {[%clk 0:03:03.4]} 3... Nf6 {[%clk 0:03:03.5]}
4. Nf3 {[%clk 0:03:04.2]} 4... a6 {[%clk 0:03:05.1]} 5. cxd5 {[%clk 0:03:03.7]}
5... cxd5 {[%clk 0:03:06.3]} 6. Bg5 {[%clk 0:03:05]} 6... e6 {[%clk 0:03:06.8]}
7. e3 {[%clk 0:03:04.8]} 7... h6 {[%clk 0:03:05.4]} 8. Bxf6 {[%clk 0:03:03]}
8... Qxf6 {[%clk 0:03:05.5]} 9. Ne5 {[%clk 0:03:03.5]} 9... Bd6 {[%clk
0:02:59.3]} 10. f4 {[%clk 0:03:02.7]} 10... Nc6 {[%clk 0:02:57.4]} 11. Bd3
{[%clk 0:02:59.7]} 11... Qh4+ {[%clk 0:02:52.6]} 12. g3 {[%clk 0:02:58.4]} 12...
Qh3 {[%clk 0:02:48.2]} 13. Ng4 {[%clk 0:02:31.9]} 13... e5 {[%clk 0:02:09.2]}
14. Nf2 {[%clk 0:02:27.2]} 14... Qd7 {[%clk 0:02:06.1]} 15. fxe5 {[%clk
0:02:23.3]} 15... Bb4 {[%clk 0:02:06.8]} 16. O-O {[%clk 0:02:19.6]} 16... Qd8
{[%clk 0:01:38.3]} 17. a3 {[%clk 0:01:55.4]} 17... Bxc3 {[%clk 0:01:36.5]} 18.
bxc3 {[%clk 0:01:57.3]} 18... Be6 {[%clk 0:01:36.4]} 19. Qf3 {[%clk 0:01:43.4]}
19... Qa5 {[%clk 0:01:32.3]} 20. Rfc1 {[%clk 0:01:32.5]} 20... O-O {[%clk
0:01:31.7]} 21. c4 {[%clk 0:01:28.7]} 21... Rad8 {[%clk 0:01:31.2]} 22. cxd5
{[%clk 0:01:26.3]} 22... Bxd5 {[%clk 0:01:31.3]} 23. Be4 {[%clk 0:01:24.4]}
23... Be6 {[%clk 0:01:27.1]} 24. Nd3 {[%clk 0:01:06]} 24... f6 {[%clk
0:01:28.2]} 25. exf6 {[%clk 0:00:39.8]} 25... Rxf6 {[%clk 0:01:27.6]} 26. Qe2
{[%clk 0:00:35.7]} 26... Re8 {[%clk 0:01:17.7]} 27. Nf4 {[%clk 0:00:32.4]} 27...
Bf7 {[%clk 0:01:17.2]} 28. Qd3 {[%clk 0:00:28.7]} 28... g5 {[%clk 0:01:16]} 29.
Rc5 {[%clk 0:00:24.2]} 29... Qd8 {[%clk 0:01:08.2]} 30. Nd5 {[%clk 0:00:17.5]}
30... Rd6 {[%clk 0:01:04.8]} 31. Nc3 {[%clk 0:00:17.7]} 31... Ne5 {[%clk
0:01:01.7]} 32. Qe2 {[%clk 0:00:18.5]} 32... Nd7 {[%clk 0:00:59.5]} 33. Rf5
{[%clk 0:00:11.3]} 33... Nf6 {[%clk 0:00:59.5]} 34. Bg2 {[%clk 0:00:06.1]} 34...
Rxd4 {[%clk 0:00:55.4]} 35. Raf1 {[%clk 0:00:05.4]} 35... Rd6 {[%clk 0:00:46.2]}
36. Qf3 {[%clk 0:00:06.2]} 36... Kg7 {[%clk 0:00:41.4]} 37. e4 {[%clk
0:00:05.3]} 37... Bh5 {[%clk 0:00:23.2]} 38. Qf2 {[%clk 0:00:06.1]} 38... Ng4
{[%clk 0:00:21.1]} 39. Qa7 {[%clk 0:00:06]} 39... Qb6+ {[%clk 0:00:20.9]} 40.
Qxb6 {[%clk 0:00:06.4]} 40... Rxb6 {[%clk 0:00:22.5]} 41. Nd5 {[%clk 0:00:07.1]}
41... Rb2 {[%clk 0:00:23]} 42. h3 {[%clk 0:00:08.1]} 42... Ne5 {[%clk
0:00:23.6]} 43. Nf6 {[%clk 0:00:09.1]} 43... Re7 {[%clk 0:00:11.6]} 44. Nxh5+
{[%clk 0:00:09.7]} 44... Kg6 {[%clk 0:00:13.1]} 45. g4 {[%clk 0:00:08.6]} 1-0

[Event "*** Titled Tuesday Blitz"]
[Site "Chess.com"]
[Date "2018.01.02"]
[Round "7"]
[White "Jbd735"]
[Black "Frolik67"]
[Result "1-0"]
[WhiteElo "2293"]
[BlackElo "2423"]
[TimeControl "180+2"]
[EndTime "14:35:31 PST"]
[Termination "Jbd735 won by resignation"]

1. e4 {[%clk 0:03:01.9]} 1... e6 {[%clk 0:02:59.7]} 2. d4 {[%clk 0:03:02.4]}
2... d5 {[%clk 0:02:58.7]} 3. Nc3 {[%clk 0:03:03.5]} 3... Nf6 {[%clk 0:02:58.6]}
4. Bg5 {[%clk 0:03:03.6]} 4... Be7 {[%clk 0:02:58.2]} 5. e5 {[%clk 0:03:04.5]}
5... Nfd7 {[%clk 0:02:54.9]} 6. h4 {[%clk 0:03:04.7]} 6... h6 {[%clk 0:02:54.1]}
7. Bxe7 {[%clk 0:03:04.9]} 7... Qxe7 {[%clk 0:02:53.7]} 8. f4 {[%clk 0:03:05.6]}
8... a6 {[%clk 0:02:52.6]} 9. Nf3 {[%clk 0:03:04.8]} 9... c5 {[%clk 0:02:47.6]}
10. Qd2 {[%clk 0:03:03.1]} 10... Nc6 {[%clk 0:02:46.9]} 11. g4 {[%clk
0:02:48.8]} 11... b5 {[%clk 0:02:46]} 12. O-O-O {[%clk 0:02:37.6]} 12... Rb8
{[%clk 0:02:34]} 13. Bh3 {[%clk 0:02:11.9]} 13... Nb6 {[%clk 0:02:16.1]} 14. f5
{[%clk 0:01:37.3]} 14... Nc4 {[%clk 0:02:10.6]} 15. Qf4 {[%clk 0:01:36.3]} 15...
a5 {[%clk 0:02:05.3]} 16. f6 {[%clk 0:01:24.6]} 16... gxf6 {[%clk 0:02:04.5]}
17. exf6 {[%clk 0:01:25.9]} 17... Qa7 {[%clk 0:02:04.8]} 18. Rhe1 {[%clk
0:01:12.1]} 18... Kd8 {[%clk 0:01:42.3]} 19. dxc5 {[%clk 0:01:00.6]} 19... a4
{[%clk 0:01:35]} 20. Nxd5 {[%clk 0:00:55.6]} 20... exd5 {[%clk 0:01:35.3]} 21.
Rxd5+ {[%clk 0:00:56.1]} 21... Bd7 {[%clk 0:01:36.4]} 22. g5 {[%clk 0:00:56.3]}
22... Rb7 {[%clk 0:01:32.2]} 23. Red1 {[%clk 0:00:48]} 23... hxg5 {[%clk
0:01:14.3]} 24. Nxg5 {[%clk 0:00:43.8]} 24... Re8 {[%clk 0:00:44.5]} 25. Qf5
{[%clk 0:00:17]} 25... N4e5 {[%clk 0:00:33.7]} 26. Nxf7+ {[%clk 0:00:16.9]}
26... Kc8 {[%clk 0:00:31.6]} 27. Rxd7 {[%clk 0:00:13]} 27... Rxd7 {[%clk
0:00:28.6]} 28. Nd6+ {[%clk 0:00:09.5]} 28... Kb8 {[%clk 0:00:25.2]} 29. Nxe8
{[%clk 0:00:10]} 29... Rxd1+ {[%clk 0:00:22.4]} 30. Kxd1 {[%clk 0:00:11.9]}
30... Qxc5 {[%clk 0:00:21.7]} 31. Qc8+ {[%clk 0:00:11.2]} 31... Ka7 {[%clk
0:00:23.2]} 32. Qc7+ {[%clk 0:00:11.2]} 32... Ka8 {[%clk 0:00:24.6]} 33. Qc8+
{[%clk 0:00:09.2]} 33... Ka7 {[%clk 0:00:26]} 34. Qc7+ {[%clk 0:00:07.8]} 34...
Ka8 {[%clk 0:00:27.3]} 35. Nd6 {[%clk 0:00:05.8]} 35... Qd4+ {[%clk 0:00:25.6]}
36. Ke2 {[%clk 0:00:05.7]} 36... Qa7 {[%clk 0:00:18.1]} 37. Qc8+ {[%clk
0:00:04.8]} 37... Qb8 {[%clk 0:00:18.5]} 38. Qa6+ {[%clk 0:00:05.5]} 38... Qa7
{[%clk 0:00:20]} 39. Qxa7+ {[%clk 0:00:06.4]} 39... Kxa7 {[%clk 0:00:21.3]} 40.
f7 {[%clk 0:00:08]} 40... Ng6 {[%clk 0:00:19.7]} 41. h5 {[%clk 0:00:08.2]} 41...
Nf8 {[%clk 0:00:21.3]} 42. h6 {[%clk 0:00:08.5]} 42... Ne7 {[%clk 0:00:22.5]}
43. Bg2 {[%clk 0:00:07.8]} 43... Kb6 {[%clk 0:00:21.7]} 44. Be4 {[%clk
0:00:07.4]} 44... Kc5 {[%clk 0:00:23]} 45. Nf5 {[%clk 0:00:08.2]} 45... Neg6
{[%clk 0:00:22.2]} 46. c3 {[%clk 0:00:07.9]} 46... Ne5 {[%clk 0:00:19.7]} 47. a3
{[%clk 0:00:08.5]} 47... Nc4 {[%clk 0:00:20.2]} 48. Nd4 {[%clk 0:00:08.5]} 48...
Nxb2 {[%clk 0:00:21.1]} 49. h7 {[%clk 0:00:09.2]} 49... Nxh7 {[%clk 0:00:22.2]}
50. Bxh7 {[%clk 0:00:10.9]} 50... Nc4 {[%clk 0:00:23.5]} 51. f8=Q+ {[%clk
0:00:12.2]} 51... Kb6 {[%clk 0:00:25.4]} 52. Qf6+ {[%clk 0:00:12.7]} 52... Ka5
{[%clk 0:00:26.7]} 53. Qg5 {[%clk 0:00:12.8]} 53... Nxa3 {[%clk 0:00:27.9]} 54.
Qc5 {[%clk 0:00:12.9]} 1-0

[Event "*** Titled Tuesday Blitz"]
[Site "Chess.com"]
[Date "2018.01.02"]
[Round "7"]
[White "ChainsOfFantasia"]
[Black "Colombiano07"]
[Result "1-0"]
[WhiteElo "2470"]
[BlackElo "2220"]
[TimeControl "180+2"]
[EndTime "14:35:39 PST"]
[Termination "ChainsOfFantasia won by resignation"]

1. d4 {[%clk 0:03:01.9]} 1... d5 {[%clk 0:03:00.6]} 2. c4 {[%clk 0:03:02.7]}
2... Bf5 {[%clk 0:02:58.1]} 3. Nf3 {[%clk 0:03:03.2]} 3... e6 {[%clk 0:02:58.9]}
4. Nc3 {[%clk 0:03:03.3]} 4... c6 {[%clk 0:03:00]} 5. cxd5 {[%clk 0:02:56.4]}
5... exd5 {[%clk 0:03:00.7]} 6. Bf4 {[%clk 0:02:57.9]} 6... Bd6 {[%clk
0:03:01.2]} 7. Bxd6 {[%clk 0:02:57.6]} 7... Qxd6 {[%clk 0:03:01.9]} 8. e3 {[%clk
0:02:59.5]} 8... Nf6 {[%clk 0:03:02.4]} 9. Be2 {[%clk 0:03:00.4]} 9... Nbd7
{[%clk 0:03:02.8]} 10. O-O {[%clk 0:02:59.9]} 10... O-O {[%clk 0:03:04.3]} 11.
a3 {[%clk 0:02:57.5]} 11... Ne4 {[%clk 0:03:05]} 12. Rc1 {[%clk 0:02:56]} 12...
Rae8 {[%clk 0:03:03.8]} 13. b4 {[%clk 0:02:56.5]} 13... Re6 {[%clk 0:03:02.2]}
14. Nxe4 {[%clk 0:02:46.8]} 14... dxe4 {[%clk 0:03:02.6]} 15. Nd2 {[%clk
0:02:42.6]} 15... Rh6 {[%clk 0:03:01.5]} 16. f4 {[%clk 0:02:42.9]} 16... exf3
{[%clk 0:03:01.2]} 17. Nxf3 {[%clk 0:02:44.1]} 17... Be4 {[%clk 0:02:59.4]} 18.
g3 {[%clk 0:02:34.5]} 18... Nf6 {[%clk 0:02:44.5]} 19. Ne5 {[%clk 0:02:32]}
19... Nd5 {[%clk 0:02:44.8]} 20. Qd2 {[%clk 0:02:29.5]} 20... Re6 {[%clk
0:02:36.1]} 21. Bd3 {[%clk 0:02:24.3]} 21... Bxd3 {[%clk 0:02:34.4]} 22. Qxd3
{[%clk 0:02:26.2]} 22... Nxb4 {[%clk 0:02:02.1]} 23. Qb3 {[%clk 0:01:44.8]}
23... Nd5 {[%clk 0:01:57.4]} 24. Qxb7 {[%clk 0:01:45.4]} 24... Qxa3 {[%clk
0:01:41.5]} 25. Rce1 {[%clk 0:01:19.9]} 25... Qe7 {[%clk 0:00:56.1]} 26. Qxe7
{[%clk 0:01:00.5]} 26... Nxe7 {[%clk 0:00:49.5]} 27. Nd7 {[%clk 0:01:00.4]}
27... Rd8 {[%clk 0:00:45]} 28. Nc5 {[%clk 0:01:01.4]} 28... Red6 {[%clk
0:00:34.7]} 29. Nb7 {[%clk 0:01:01.2]} 29... Nd5 {[%clk 0:00:33]} 30. Nxd6
{[%clk 0:00:55.6]} 30... Rxd6 {[%clk 0:00:33.8]} 31. Ra1 {[%clk 0:00:54.1]}
31... Rd7 {[%clk 0:00:20.4]} 32. Kf2 {[%clk 0:00:49]} 32... g6 {[%clk
0:00:20.3]} 33. Rfc1 {[%clk 0:00:49.7]} 33... Rd6 {[%clk 0:00:12.5]} 34. Rxa7
{[%clk 0:00:49.8]} 34... Rf6+ {[%clk 0:00:13.5]} 35. Ke2 {[%clk 0:00:50.8]}
35... Re6 {[%clk 0:00:15.1]} 36. Ra3 {[%clk 0:00:51.4]} 36... Kg7 {[%clk
0:00:13.9]} 37. Kf3 {[%clk 0:00:50.9]} 37... g5 {[%clk 0:00:14.6]} 38. h3 {[%clk
0:00:48.4]} 38... h5 {[%clk 0:00:15.5]} 39. g4 {[%clk 0:00:48.4]} 39... hxg4+
{[%clk 0:00:16.7]} 40. hxg4 {[%clk 0:00:50.3]} 40... Kg6 {[%clk 0:00:17.6]} 41.
e4 {[%clk 0:00:47]} 41... Nf6 {[%clk 0:00:16.8]} 42. Re3 {[%clk 0:00:39.2]}
42... Ne8 {[%clk 0:00:11.5]} 43. Rec3 {[%clk 0:00:39.4]} 43... Nf6 {[%clk
0:00:11.6]} 44. e5 {[%clk 0:00:37.8]} 44... Nd5 {[%clk 0:00:04]} 45. Rxc6 {[%clk
0:00:38.6]} 45... Nf4 {[%clk 0:00:04.2]} 46. Rxe6+ {[%clk 0:00:36.4]} 46... fxe6
{[%clk 0:00:06.1]} 47. Rc6 {[%clk 0:00:33.4]} 47... Kf7 {[%clk 0:00:07.1]} 48.
Ke4 {[%clk 0:00:34.1]} 48... Nd5 {[%clk 0:00:07.5]} 49. Rd6 {[%clk 0:00:34.1]}
49... Nc3+ {[%clk 0:00:06.8]} 50. Kd3 {[%clk 0:00:34.1]} 50... Nb5 {[%clk
0:00:04.5]} 51. Rd7+ {[%clk 0:00:35.2]} 51... Ke8 {[%clk 0:00:04]} 52. Rg7
{[%clk 0:00:35.7]} 1-0

[Event "*** Titled Tuesday Blitz"]
[Site "Chess.com"]
[Date "2018.01.02"]
[Round "7"]
[White "chessdjw"]
[Black "DrVelja"]
[Result "1-0"]
[WhiteElo "2526"]
[BlackElo "2549"]
[TimeControl "180+2"]
[EndTime "14:35:59 PST"]
[Termination "chessdjw won by resignation"]

1. Nf3 {[%clk 0:03:01.9]} 1... Nf6 {[%clk 0:03:00.7]} 2. g3 {[%clk 0:03:02.8]}
2... g6 {[%clk 0:03:01.9]} 3. Bg2 {[%clk 0:03:04.7]} 3... Bg7 {[%clk 0:03:03.6]}
4. O-O {[%clk 0:03:06]} 4... O-O {[%clk 0:03:05.3]} 5. d4 {[%clk 0:03:07.8]}
5... d6 {[%clk 0:03:06.9]} 6. b3 {[%clk 0:03:09.2]} 6... c5 {[%clk 0:02:51.2]}
7. c4 {[%clk 0:03:09.3]} 7... Nc6 {[%clk 0:02:50]} 8. Nc3 {[%clk 0:03:09.6]}
8... Bg4 {[%clk 0:02:09]} 9. d5 {[%clk 0:03:05.5]} 9... Nxd5 {[%clk 0:01:54.9]}
10. cxd5 {[%clk 0:03:04]} 10... Bxc3 {[%clk 0:01:55.7]} 11. Bh6 {[%clk
0:02:41.9]} 11... Bxf3 {[%clk 0:01:56.2]} 12. exf3 {[%clk 0:02:13.1]} 12... Bxa1
{[%clk 0:01:53.5]} 13. Bxf8 {[%clk 0:02:07.7]} 13... Ne5 {[%clk 0:01:24.7]} 14.
Bxe7 {[%clk 0:01:59.3]} 14... Qxe7 {[%clk 0:01:26.6]} 15. Qxa1 {[%clk 0:02:00]}
15... Re8 {[%clk 0:01:28.1]} 16. f4 {[%clk 0:01:57.2]} 16... Nd7 {[%clk
0:01:26.2]} 17. h4 {[%clk 0:01:56.3]} 17... Qf6 {[%clk 0:01:19.3]} 18. Qxf6
{[%clk 0:01:52]} 18... Nxf6 {[%clk 0:01:20.6]} 19. Bf3 {[%clk 0:01:53.6]} 19...
b5 {[%clk 0:01:07.8]} 20. Rc1 {[%clk 0:01:52.2]} 20... h5 {[%clk 0:00:53.5]} 21.
Kf1 {[%clk 0:01:53]} 21... Kf8 {[%clk 0:00:53.8]} 22. Ra1 {[%clk 0:01:37]} 22...
Re7 {[%clk 0:00:48.6]} 23. Rb1 {[%clk 0:01:32.6]} 23... a6 {[%clk 0:00:35.9]}
24. Rc1 {[%clk 0:01:27.8]} 24... a5 {[%clk 0:00:26]} 25. Be2 {[%clk 0:01:26.7]}
25... Nxd5 {[%clk 0:00:12.4]} 26. Bxb5 {[%clk 0:01:27.4]} 26... Nf6 {[%clk
0:00:14]} 27. Bc6 {[%clk 0:01:23.6]} 27... d5 {[%clk 0:00:09.5]} 28. Rxc5 {[%clk
0:01:22.1]} 28... Rc7 {[%clk 0:00:11]} 29. a3 {[%clk 0:01:22.3]} 29... Ke7
{[%clk 0:00:11.7]} 30. b4 {[%clk 0:01:23.3]} 30... axb4 {[%clk 0:00:12.9]} 31.
axb4 {[%clk 0:01:25.2]} 31... Kd6 {[%clk 0:00:11.9]} 32. Ba4 {[%clk 0:01:22.4]}
32... Rxc5 {[%clk 0:00:13.4]} 33. bxc5+ {[%clk 0:01:24.3]} 33... Kxc5 {[%clk
0:00:15.3]} 34. Ke2 {[%clk 0:01:25.3]} 34... Kd4 {[%clk 0:00:16]} 35. Kf3 {[%clk
0:01:25.5]} 35... Kc3 {[%clk 0:00:16.6]} 36. f5 {[%clk 0:01:25.8]} 36... gxf5
{[%clk 0:00:12.6]} 37. Kf4 {[%clk 0:01:27]} 37... d4 {[%clk 0:00:10.1]} 38. Kxf5
{[%clk 0:01:27.6]} 38... Nd5 {[%clk 0:00:10.7]} 39. g4 {[%clk 0:01:26.1]} 39...
hxg4 {[%clk 0:00:03.3]} 40. h5 {[%clk 0:01:27.2]} 40... g3 {[%clk 0:00:03.8]}
41. fxg3 {[%clk 0:01:27.9]} 41... d3 {[%clk 0:00:05]} 42. h6 {[%clk 0:01:28.6]}
42... Ne3+ {[%clk 0:00:06.6]} 43. Kg5 {[%clk 0:01:27.4]} 43... f6+ {[%clk
0:00:05.2]} 44. Kxf6 {[%clk 0:01:27.1]} 44... Nc2 {[%clk 0:00:06.2]} 45. h7
{[%clk 0:01:27.8]} 45... d2 {[%clk 0:00:07.8]} 46. h8=Q {[%clk 0:01:28.5]} 46...
d1=Q {[%clk 0:00:09.2]} 47. Kf7+ {[%clk 0:01:28.5]} 47... Kb4 {[%clk 0:00:08.9]}
48. Qh4+ {[%clk 0:01:27.2]} 48... Kc5 {[%clk 0:00:09.3]} 49. Qg5+ {[%clk
0:01:24.5]} 49... Kb4 {[%clk 0:00:10.6]} 50. Qf4+ {[%clk 0:01:25.2]} 50... Ka3
{[%clk 0:00:11.9]} 51. Bxc2 {[%clk 0:01:24]} 51... Qxc2 {[%clk 0:00:12.9]} 52.
g4 {[%clk 0:01:20.1]} 52... Qh7+ {[%clk 0:00:14.3]} 53. Kf6 {[%clk 0:01:20.5]}
53... Qh8+ {[%clk 0:00:14.8]} 54. Ke7 {[%clk 0:01:19.4]} 54... Qg7+ {[%clk
0:00:15.2]} 55. Ke8 {[%clk 0:01:17.3]} 55... Qg6+ {[%clk 0:00:15.1]} 56. Kf8
{[%clk 0:01:17.2]} 56... Qe6 {[%clk 0:00:06.5]} 57. g5 {[%clk 0:01:14.4]} 57...
Qc8+ {[%clk 0:00:07.8]} 58. Kg7 {[%clk 0:01:15.4]} 58... Qd7+ {[%clk 0:00:06.9]}
59. Qf7 {[%clk 0:01:15.1]} 59... Qd4+ {[%clk 0:00:07.1]} 60. Kg8 {[%clk
0:01:16.5]} 60... Kb4 {[%clk 0:00:05.6]} 61. g6 {[%clk 0:01:17.1]} 61... Kc5
{[%clk 0:00:05.8]} 62. g7 {[%clk 0:01:11.1]} 62... Kc6 {[%clk 0:00:07.2]} 63.
Qe6+ {[%clk 0:01:10.2]} 63... Kc7 {[%clk 0:00:07.2]} 64. Kf8 {[%clk 0:01:10.6]}
64... Qd8+ {[%clk 0:00:06.2]} 65. Qe8 {[%clk 0:01:11.7]} 1-0

[Event "*** Titled Tuesday Blitz"]
[Site "Chess.com"]
[Date "2018.01.02"]
[Round "7"]
[White "FrankieJay"]
[Black "BillCoe"]
[Result "1-0"]
[WhiteElo "2273"]
[BlackElo "1922"]
[TimeControl "180+2"]
[EndTime "14:36:12 PST"]
[Termination "FrankieJay won by resignation"]

1. c4 {[%clk 0:03:01.9]} 1... c5 {[%clk 0:02:59.9]} 2. Nf3 {[%clk 0:03:02.2]}
2... Nc6 {[%clk 0:03:00.7]} 3. Nc3 {[%clk 0:03:03.1]} 3... Nf6 {[%clk 0:03:01]}
4. g3 {[%clk 0:02:56]} 4... g6 {[%clk 0:02:59.8]} 5. Bg2 {[%clk 0:02:56.7]} 5...
Bg7 {[%clk 0:03:00.8]} 6. d4 {[%clk 0:02:58.2]} 6... cxd4 {[%clk 0:03:01.5]} 7.
Nxd4 {[%clk 0:03:00.1]} 7... a6 {[%clk 0:03:00.8]} 8. O-O {[%clk 0:02:59.7]}
8... O-O {[%clk 0:02:59.1]} 9. e3 {[%clk 0:02:44.9]} 9... Ne5 {[%clk 0:02:48.9]}
10. b3 {[%clk 0:02:45]} 10... d6 {[%clk 0:02:49.3]} 11. Bb2 {[%clk 0:02:44.7]}
11... Bg4 {[%clk 0:02:44.7]} 12. f3 {[%clk 0:02:45.8]} 12... Bd7 {[%clk
0:02:41.4]} 13. Kh1 {[%clk 0:02:43.8]} 13... Rc8 {[%clk 0:02:38.9]} 14. Rc1
{[%clk 0:02:38.4]} 14... Re8 {[%clk 0:02:31]} 15. e4 {[%clk 0:02:39.4]} 15...
Nc6 {[%clk 0:02:30.6]} 16. Nxc6 {[%clk 0:02:13]} 16... Bxc6 {[%clk 0:02:28.8]}
17. Re1 {[%clk 0:02:13.7]} 17... e6 {[%clk 0:02:26.5]} 18. Qd2 {[%clk 0:02:06]}
18... Re7 {[%clk 0:02:19.9]} 19. Rcd1 {[%clk 0:02:04.9]} 19... Rd7 {[%clk
0:02:19.1]} 20. Ne2 {[%clk 0:01:49.3]} 20... b5 {[%clk 0:02:06.2]} 21. cxb5
{[%clk 0:01:42]} 21... axb5 {[%clk 0:01:55.7]} 22. Nd4 {[%clk 0:01:40.7]} 22...
Qb6 {[%clk 0:01:55.8]} 23. Nxc6 {[%clk 0:01:40]} 23... Rxc6 {[%clk 0:01:46.7]}
24. Bd4 {[%clk 0:01:28.1]} 24... Qc7 {[%clk 0:01:46.2]} 25. Rc1 {[%clk
0:01:26.5]} 25... Ne8 {[%clk 0:01:34.4]} 26. Rxc6 {[%clk 0:01:23.5]} 26... Qxc6
{[%clk 0:01:34.8]} 27. Rc1 {[%clk 0:01:24.9]} 27... Qb7 {[%clk 0:01:35]} 28.
Bxg7 {[%clk 0:01:18.4]} 28... Nxg7 {[%clk 0:01:35.5]} 29. f4 {[%clk 0:01:17.6]}
29... Ne8 {[%clk 0:01:29.7]} 30. Qb4 {[%clk 0:01:11.5]} 30... Nc7 {[%clk
0:01:22.5]} 31. a4 {[%clk 0:00:52.6]} 31... Na6 {[%clk 0:01:22.6]} 32. Qxb5
{[%clk 0:00:49.2]} 32... Qxb5 {[%clk 0:01:23.3]} 33. axb5 {[%clk 0:00:51.1]}
33... Nc5 {[%clk 0:01:24.7]} 34. b4 {[%clk 0:00:30.4]} 34... Nd3 {[%clk
0:01:18.6]} 35. Rc8+ {[%clk 0:00:26.6]} 35... Kg7 {[%clk 0:01:17.8]} 36. b6
{[%clk 0:00:21.1]} 36... Rb7 {[%clk 0:01:13.2]} 37. Rc6 {[%clk 0:00:21.4]} 37...
Nxb4 {[%clk 0:01:06.1]} 38. Rxd6 {[%clk 0:00:22.3]} 38... Kf8 {[%clk 0:01:07.1]}
39. e5 {[%clk 0:00:23.3]} 39... Rb8 {[%clk 0:01:03.8]} 40. b7 {[%clk 0:00:24.7]}
40... Ke7 {[%clk 0:01:04.4]} 41. Be4 {[%clk 0:00:24.9]} 41... h5 {[%clk
0:00:46.8]} 42. Rb6 {[%clk 0:00:25.7]} 42... Nd5 {[%clk 0:00:44.8]} 43. Bxd5
{[%clk 0:00:18.1]} 43... exd5 {[%clk 0:00:46.7]} 44. Kg2 {[%clk 0:00:20]} 44...
Kd7 {[%clk 0:00:46.3]} 45. Rf6 {[%clk 0:00:13.9]} 45... Ke7 {[%clk 0:00:46.9]}
46. Rb6 {[%clk 0:00:13.6]} 46... Kd7 {[%clk 0:00:47.3]} 47. Kf3 {[%clk
0:00:09.6]} 47... Kc7 {[%clk 0:00:47.6]} 48. Rf6 {[%clk 0:00:11.1]} 48... Kxb7
{[%clk 0:00:48.3]} 49. Rxf7+ {[%clk 0:00:12.6]} 49... Kc6 {[%clk 0:00:49.4]} 50.
Rf6+ {[%clk 0:00:13.9]} 50... Kc5 {[%clk 0:00:50.6]} 51. Rxg6 {[%clk 0:00:15.8]}
51... Rb3+ {[%clk 0:00:49]} 52. Kg2 {[%clk 0:00:17.3]} 52... Rb2+ {[%clk
0:00:46.2]} 53. Kh3 {[%clk 0:00:18.6]} 53... d4 {[%clk 0:00:46.6]} 54. Rd6
{[%clk 0:00:19.3]} 54... Kc4 {[%clk 0:00:36.9]} 55. e6 {[%clk 0:00:18.6]} 55...
Re2 {[%clk 0:00:37.7]} 56. f5 {[%clk 0:00:19.4]} 56... d3 {[%clk 0:00:38.7]} 57.
f6 {[%clk 0:00:19]} 57... Re5 {[%clk 0:00:32.6]} 58. Rxd3 {[%clk 0:00:17.6]}
58... Kxd3 {[%clk 0:00:32.8]} 59. f7 {[%clk 0:00:19.5]} 59... Rxe6 {[%clk
0:00:33.3]} 60. f8=Q {[%clk 0:00:20.7]} 1-0